bitfinex/quotes_SOLUSD_20220101
["timestamp","ask_amount","ask_price","bid_price","bid_amount"]
[1641035476537,9.9973,172.31,172.2,10.4552]
[1641035477339,1.2888,172.31,172.2,10.7152]
[1641035477644,103.7173,172.37,172.2,12.14189368]
[1641035477645,1.2946,172.37,172.2,12.14189368]
[1641035477938,1.282,172.36,172.2,22.65759994]
[1641035478237,1.282,172.36,172.2,33.44570447]
[1641035478442,27.80300311,172.35,172.2,33.44570447]
[1641035481039,36.50940311,172.35,172.2,33.44570447]
[1641035481239,37.00940311,172.35,172.2,33.44570447]
[1641035481639,37.00940311,172.35,172.2,32.02674987]
[1641035481838,1.2983,172.34,172.2,32.02674987]
[1641035482240,1.7983,172.34,172.2,32.02674987]
[1641035482442,10.5055,172.34,172.24,8.7072]
[1641035482841,10.5055,172.34,172.24,8.9672]
[1641035483243,10.0055,172.34,172.24,9.4672]
[1641035485249,10.0055,172.34,172.23,8.7078]
[1641035485446,10.0055,172.34,172.21,1.2333]
[1641035485447,10.5055,172.34,172.21,1.2333]
[1641035485647,10.5055,172.34,172.21,1.7333]
[1641035486048,10.0055,172.34,172.21,1.7333]
[1641035486448,10.0055,172.34,172.25,8.7068]
[1641035486950,10.0055,172.34,172.25,9.4668]
[1641035487852,10.0055,172.34,172.25,8.9668]
[1641035488252,10.0055,172.34,172.25,0.26]
[1641035488554,10.0055,172.34,172.24,8.9674]
[1641035488756,10.0055,172.34,172.24,9.4674]
[1641035489755,10.0055,172.34,172.24,8.9674]
[1641035490155,10.0055,172.34,172.24,9.4674]
[1641035493060,0.79933338,172.29,172.24,9.4674]
[1641035496764,0.79933338,172.29,172.27,8.7037]
[1641035496965,0.79933338,172.29,172.28,3.03219997]
[1641035497367,0.79933338,172.29,172.28,3.79219997]
[1641035497864,0.79933338,172.29,172.28,12.49609997]
[1641035508894,3.338e-05,172.29,172.28,12.49609997]
[1641035509098,3.338e-05,172.29,172.28,13.83969997]
[1641035509696,3.338e-05,172.29,172.28,15.26639365]
[1641035509901,23.95467014,172.44,172.28,15.26639365]
[1641035510100,23.95467014,172.44,172.29,74.0866]
[1641035510298,23.95467014,172.44,172.36,8.701]
[1641035510499,23.95467014,172.44,172.36,8.961]
[1641035510698,23.95467014,172.44,172.36,9.461]
[1641035511103,1.2429,172.44,172.36,9.461]
[1641035512298,1.2429,172.44,172.36,0.26]
[1641035512499,1.2429,172.44,172.33,79.6264]
[1641035512701,1.7429,172.44,172.3,1.2715]
[1641035512901,1.7429,172.44,172.3,1.7715]
[1641035513401,10.7046,172.44,172.32,8.7033]
[1641035513802,10.7046,172.44,172.32,8.9633]
[1641035514002,10.4446,172.44,172.32,8.9633]
[1641035514505,10.4446,172.44,172.32,9.4633]
[1641035514708,9.9446,172.44,172.32,9.4633]
[1641035515506,9.9446,172.44,172.36,8.7013]
[1641035515905,10.4446,172.44,172.36,0.26]
[1641035516505,10.4446,172.44,172.33,2.1107]
[1641035517716,10.4446,172.44,172.34,8.7019]
[1641035517911,10.4446,172.44,172.34,9.2019]
[1641035520615,10.4446,172.44,172.34,9.4619]
[1641035521617,10.4446,172.44,172.34,0.76]
[1641035521920,10.4446,172.44,172.34,0.26]
[1641035522115,10.4446,172.44,172.33,9.4629]
[1641035524418,9.9446,172.44,172.33,9.4629]
[1641035525820,10.4446,172.44,172.33,8.9629]
[1641035526120,10.4446,172.44,172.33,8.7029]
[1641035526320,10.4446,172.44,172.33,9.2029]
[1641035527521,10.4446,172.44,172.33,9.4629]
[1641035531725,9.9446,172.44,172.33,9.4629]
[1641035533328,9.9446,172.44,172.33,8.9629]
[1641035533527,9.9446,172.44,172.33,9.4629]
[1641035534528,9.9446,172.44,172.33,8.9629]
[1641035534827,10.4446,172.44,172.33,8.9629]
[1641035536028,10.4446,172.44,172.33,9.4629]
[1641035540941,10.7046,172.44,172.33,0.26]
[1641035541339,10.7046,172.44,172.32,8.9638]
[1641035543067,10.7046,172.44,172.32,0.26]
[1641035543464,10.7046,172.44,172.31,8.7043]
[1641035543465,10.7046,172.44,172.31,8.9643]
[1641035545569,12.3537857,172.44,172.31,8.9643]
[1641035546167,10.7046,172.44,172.31,8.9643]
[1641035547171,12.3537857,172.44,172.31,8.9643]
[1641035547973,12.3537857,172.44,172.31,9.4643]
[1641035548673,10.7046,172.44,172.31,9.4643]
[1641035549273,12.3537857,172.44,172.31,9.4643]
[1641035552976,12.3537857,172.44,172.31,8.9643]
[1641035553980,12.3537857,172.44,172.31,8.7043]
[1641035554177,12.3537857,172.44,172.29,8.7049]
[1641035554377,12.3537857,172.44,172.26,80.4815]
[1641035554378,1.42669368,172.43,172.26,80.4815]
[1641035554678,29.0195,172.4,172.26,80.9815]
[1641035554877,29.5195,172.4,172.26,80.9815]
[1641035555077,29.7795,172.4,172.26,80.9815]
[1641035555278,0.76,172.4,172.26,8.7065]
[1641035555477,24.98360884,172.38,172.24,79.7566]
[1641035555680,8.7084,172.32,172.24,79.7566]
[1641035555878,26.43883927,172.31,172.17,1.2377]
[1641035556078,26.43883927,172.31,172.18,77.8191]
[1641035556279,26.93883927,172.31,172.18,77.8191]
[1641035556678,1.2996,172.3,172.18,78.3191]
[1641035556879,8.7092,172.29,172.18,78.3191]
[1641035557078,1.2996,172.3,172.18,78.3191]
[1641035557378,1.2996,172.3,172.2,8.7093]
[1641035557781,1.7996,172.3,172.2,8.7093]
[1641035558480,10.5083,172.3,172.2,8.9693]
[1641035560381,10.5083,172.3,172.2,9.4693]
[1641035560886,10.0083,172.3,172.2,9.4693]
[1641035562284,10.5083,172.3,172.2,9.4693]
[1641035564882,10.0083,172.3,172.2,9.4693]
[1641035565083,1.2996,172.3,172.2,9.4693]
[1641035565283,26.43883927,172.31,172.2,9.4693]
[1641035567187,26.43883927,172.31,172.2,10.89599368]
[1641035567385,26.43883927,172.31,172.2,9.4693]
[1641035567885,26.43883927,172.31,172.2,10.8039]
[1641035568088,8.7075,172.33,172.2,10.8039]
[1641035568285,9.2075,172.33,172.2,10.8039]
[1641035568912,8.7075,172.33,172.2,10.8039]
[1641035569086,32.29556631,172.33,172.2,10.8039]
[1641035571296,32.79556631,172.33,172.2,10.8039]
[1641035573692,32.29556631,172.33,172.2,10.8039]
[1641035579821,32.79556631,172.33,172.2,10.8039]
[1641035580124,1.2392,172.32,172.2,10.8039]
[1641035580324,9.9468,172.32,172.2,10.8039]
[1641035580525,10.4468,172.32,172.2,10.8039]
[1641035582622,1.2392,172.32,172.2,10.8039]
[1641035582822,32.29516631,172.33,172.2,10.8039]
[1641035583021,32.29516631,172.33,172.2,12.23059368]
[1641035583223,23.58806631,172.33,172.2,12.23059368]
[1641035583422,1.299,172.35,172.2,12.23059368]
[1641035583625,1.299,172.35,172.2,22.58536488]
[1641035583823,8.7046,172.38,172.2,22.58536488]
[1641035584026,1.347,172.4,172.2,22.58536488]
[1641035584523,25.05898437,172.39,172.2,22.58536488]
[1641035585327,1.2683,172.38,172.2,22.58536488]
[1641035586331,33.76298437,172.39,172.2,22.58536488]
[1641035586533,25.05898437,172.39,172.2,22.58536488]
[1641035586730,25.05898437,172.39,172.21,15.48418235]
[1641035586930,25.05898437,172.39,172.3,8.7031]
[1641035587130,25.05898437,172.39,172.3,8.9631]
[1641035587333,25.05898437,172.39,172.3,9.4631]
[1641035587730,25.05898437,172.39,172.3,10.7893]
[1641035589931,10.0595,172.41,172.3,10.7893]
[1641035590340,1.3564,172.41,172.3,10.7893]
[1641035590931,29.06502167,172.41,172.3,10.7893]
[1641035593433,37.76802167,172.41,172.3,10.7893]
[1641035595335,38.26802167,172.41,172.3,10.7893]
[1641035602346,35.76802167,172.41,172.3,10.7893]
[1641035602946,1.3594,172.4,172.3,10.7893]
[1641035603146,10.0631,172.4,172.3,10.7893]
[1641035603348,10.5631,172.4,172.3,10.7893]
[1641035604547,1.3594,172.4,172.3,10.7893]
[1641035607150,1.3594,172.4,172.3,10.2893]
[1641035609653,10.063,172.4,172.3,10.2893]
[1641035615293,10.063,172.4,172.3,10.7893]
[1641035615692,10.063,172.4,172.3,10.2893]
[1641035616294,10.563,172.4,172.3,10.2893]
[1641035616494,10.063,172.4,172.3,10.2893]
[1641035618994,10.063,172.4,172.3,10.0293]
[1641035619194,10.563,172.4,172.3,10.5293]
[1641035619395,10.063,172.4,172.3,10.0293]
[1641035620497,10.063,172.4,172.3,10.2893]
[1641035622708,10.063,172.4,172.3,8.9631]
[1641035623306,10.063,172.4,172.3,0.26]
[1641035623307,10.563,172.4,172.3,0.26]
[1641035623506,10.563,172.4,172.29,8.9655]
[1641035623706,10.063,172.4,172.29,8.9655]
[1641035624206,11.7121857,172.4,172.29,8.9655]
[1641035625908,10.063,172.4,172.29,8.9655]
[1641035629333,10.063,172.4,172.29,8.7055]
[1641035629531,10.063,172.4,172.28,8.7059]
[1641035630736,10.063,172.4,172.28,8.9659]
[1641035636947,10.063,172.4,172.29,1.2311]
[1641035637145,10.063,172.4,172.29,9.9365]
[1641035637548,10.323,172.4,172.29,9.9365]
[1641035637749,10.323,172.4,172.29,1.2311]
[1641035638349,1.6491857,172.39,172.29,1.2311]
[1641035638550,8.706,172.35,172.29,1.2311]
[1641035638751,1.6491857,172.39,172.29,1.4911]
[1641035638752,23.37839001,172.37,172.29,1.4911]
[1641035640178,1.2911,172.36,172.29,1.4911]
[1641035640352,9.9967,172.36,172.29,10.1966]
[1641035641654,9.9967,172.36,172.29,8.374401]
[1641035641958,9.9967,172.36,172.29,7.1030331]
[1641035643354,9.9967,172.36,172.29,7.3630331]
[1641035647361,1.2911,172.36,172.29,7.3630331]
[1641035648465,23.37839001,172.37,172.29,7.3630331]
[1641035653068,8.704,172.39,172.29,7.3630331]
[1641035653868,8.704,172.39,172.29,8.6870331]
[1641035654670,2.9290857,172.44,172.31,91.1790066]
[1641035654870,1.6491857,172.44,172.37,8.7004]
[1641035655070,1.6491857,172.44,172.37,8.9604]
[1641035655303,1.833395,172.45,172.37,8.9604]
[1641035655503,1.833395,172.45,172.37,10.38709368]
[1641035657898,1.833395,172.45,172.37,20.74186488]
[1641035659000,1.833395,172.45,172.37,31.25738655]
[1641035667115,1.833395,172.45,172.37,31.75738655]
[1641035668717,1.833395,172.45,172.37,31.49738655]
[1641035670017,1.833395,172.45,172.37,31.75738655]
[1641035687721,1.833395,172.45,172.37,10.12709368]
[1641035687922,1.833395,172.45,172.37,8.7004]
[1641035688949,1.833395,172.45,172.37,9.2004]
[1641035689326,1.833395,172.45,172.37,9.4604]
[1641035704074,1.833395,172.45,172.37,9.2004]
[1641035704277,23.78493209,172.44,172.37,9.2004]
[1641035705473,23.78493209,172.44,172.37,9.4604]
[1641035709176,1.3178,172.44,172.37,9.4604]
[1641035714683,1.3178,172.44,172.37,9.2004]
[1641035715283,1.833395,172.45,172.37,9.2004]
[1641035715984,1.833395,172.45,172.37,9.4604]
[1641035716885,1.833395,172.45,172.37,10.732]
[1641035718284,1.833395,172.45,172.37,9.4604]
[1641035720190,1.833395,172.45,172.37,10.79]
[1641035726998,1.833395,172.45,172.37,20.7277439]
[1641035727200,1.833395,172.45,172.38,9.84921564]
[1641035727399,1.833395,172.45,172.41,8.6959]
[1641035727599,1.833395,172.45,172.41,8.9559]
[1641035727800,1.833395,172.45,172.41,19.30511564]
[1641035728003,1.833395,172.45,172.41,35.2721712]
[1641035730000,1.833395,172.45,172.43,8.6946]
[1641035730221,1.833395,172.45,172.44,3.03219997]
[1641035730429,1.833395,172.45,172.44,3.53219997]
[1641035730722,1.833395,172.45,172.44,3.79219997]
[1641035731119,1.833395,172.45,172.44,12.48739997]
[1641035736328,1.833395,172.45,172.44,12.22739997]
[1641035737528,1.833395,172.45,172.44,12.48739997]
[1641035744439,1.833395,172.45,172.44,12.22739997]
[1641035745941,1.833395,172.45,172.44,12.48739997]
[1641035749851,1.833395,172.45,172.44,12.22739997]
[1641035751251,1.833395,172.45,172.44,12.48739997]
[1641035756058,1.833395,172.45,172.44,12.22739997]
[1641035757484,1.833395,172.45,172.44,12.48739997]
[1641035769498,1.833395,172.45,172.44,22.48739997]
[1641035771703,1.2856,172.51,172.44,22.48739997]
[1641035772006,1.2717,172.59,172.52,8.6917]
[1641035772206,1.6491857,172.63,172.52,8.6917]
[1641035772402,96.1491857,172.63,172.52,9.4517]
[1641035773003,96.1491857,172.63,172.53,1.42669368]
[1641035773205,94.5,172.63,172.58,8.6878]
[1641035773406,94.5,172.63,172.58,9.1878]
[1641035773706,94.5,172.63,172.58,9.4478]
[1641035774609,26.64422593,172.69,172.58,9.4478]
[1641035775007,27.14422593,172.69,172.58,9.4478]
[1641035775606,1.6491857,172.68,172.58,9.4478]
[1641035775808,10.3388857,172.68,172.58,9.4478]
[1641035776406,8.6897,172.68,172.58,9.4478]
[1641035776608,11.523095,172.68,172.58,9.4478]
[1641035776907,11.023095,172.68,172.58,9.4478]
[1641035777109,11.523095,172.68,172.58,9.4478]
[1641035777308,12.836295,172.68,172.58,9.4478]
[1641035778010,12.336295,172.68,172.58,9.4478]
[1641035778211,12.836295,172.68,172.58,9.4478]
[1641035782941,12.836295,172.68,172.58,9.1878]
[1641035784645,12.836295,172.68,172.58,9.4478]
[1641035785348,12.336295,172.68,172.58,9.4478]
[1641035785846,3.646595,172.68,172.58,9.4478]
[1641035786746,1.3132,172.68,172.58,9.4478]
[1641035787147,1.3132,172.68,172.58,9.1878]
[1641035787349,10.0029,172.68,172.58,9.1878]
[1641035788250,12.336295,172.68,172.58,9.1878]
[1641035788549,12.336295,172.68,172.58,9.4478]
[1641035788951,12.336295,172.68,172.58,9.1878]
[1641035789252,12.336295,172.68,172.56,28.9635]
[1641035789253,12.836295,172.68,172.5,77.2273]
[1641035789451,12.836295,172.68,172.51,10.0]
[1641035789651,13.096295,172.68,172.51,10.0]
[1641035789852,13.096295,172.68,172.51,10.5]
[1641035790559,13.096295,172.68,172.51,0.5]
[1641035790757,13.096295,172.68,172.54,8.6921]
[1641035790957,14.7454807,172.68,172.54,0.5]
[1641035791154,1.42669368,172.67,172.54,0.5]
[1641035791358,0.5,172.67,172.47,1.2977]
[1641035791557,0.76,172.67,172.5,0.5]
[1641035791756,0.76,172.67,172.5,8.6938]
[1641035791757,28.9793,172.64,172.5,8.6938]
[1641035791960,29.7393,172.64,172.5,8.6938]
[1641035792257,0.76,172.64,172.48,10.0]
[1641035792458,0.26,172.64,172.48,10.0]
[1641035792657,1.6491857,172.65,172.45,79.1331]
[1641035792858,8.6947,172.58,172.49,8.6946]
[1641035793259,8.6947,172.58,172.49,8.9546]
[1641035793858,9.1947,172.58,172.49,8.9546]
[1641035794058,8.6947,172.58,172.49,8.9546]
[1641035794258,8.6947,172.58,172.49,9.4546]
[1641035794460,8.6947,172.58,172.49,8.9546]
[1641035799263,8.6947,172.58,172.49,8.6946]
[1641035800062,9.9931,172.58,172.49,8.6946]
[1641035800564,9.9931,172.58,172.49,8.9546]
[1641035803365,9.9931,172.58,172.49,9.4546]
[1641035806870,1.2984,172.58,172.49,9.4546]
[1641035807474,1.2378,172.65,172.49,9.4546]
[1641035807672,1.3555,172.64,172.56,8.6911]
[1641035807872,2.333395,172.58,172.56,0.5]
[1641035808073,2.333395,172.58,172.57,3.03219997]
[1641035808271,5.36362404,172.58,172.56,0.76]
[1641035808472,5.36362404,172.58,172.52,29.7302]
[1641035809098,5.36362404,172.58,172.55,8.6919]
[1641035809300,5.36362404,172.58,172.56,3.03219997]
[1641035809498,5.36362404,172.58,172.56,0.26]
[1641035810401,5.36362404,172.58,172.54,8.6924]
[1641035810602,5.36362404,172.58,172.54,0.26]
[1641035811001,5.36362404,172.58,172.5,73.5037]
[1641035811701,5.36362404,172.58,172.5,73.2437]
[1641035811900,5.36362404,172.58,172.52,8.6931]
[1641035812303,5.36362404,172.58,172.52,9.1931]
[1641035812900,5.36362404,172.58,172.5,72.7437]
[1641035813100,5.36362404,172.58,172.5,73.5037]
[1641035813600,5.36362404,172.58,172.5,82.1978]
[1641035818007,3.03022904,172.58,172.5,82.1978]
[1641035820108,5.36362404,172.58,172.5,82.1978]
[1641035822710,5.36362404,172.58,172.5,81.9378]
[1641035822910,5.36362404,172.58,172.5,8.6941]
[1641035823115,5.36362404,172.58,172.43,1.3473]
[1641035823313,5.86362404,172.58,172.43,1.3473]
[1641035823515,5.86362404,172.58,172.45,79.6331]
[1641035823915,1.2933,172.57,172.45,79.6331]
[1641035824118,38.78403085,172.55,172.45,79.6331]
[1641035824517,39.28403085,172.55,172.45,79.8931]
[1641035825719,39.28403085,172.55,172.46,8.6965]
[1641035826015,39.28403085,172.55,172.46,8.9565]
[1641035827817,39.28403085,172.55,172.46,8.6965]
[1641035828219,39.28403085,172.55,172.45,87.8302]
[1641035828618,39.28403085,172.55,172.45,88.3302]
[1641035829220,39.28403085,172.55,172.45,88.0902]
[1641035830621,38.78403085,172.55,172.45,88.5902]
[1641035831020,39.28403085,172.55,172.45,88.5902]
[1641035832833,39.28403085,172.55,172.45,87.8302]
[1641035833020,39.28403085,172.55,172.45,79.1331]
[1641035834020,39.28403085,172.55,172.45,79.3931]
[1641035834422,1.2302,172.54,172.45,79.3931]
[1641035834623,8.6971,172.53,172.45,88.0902]
[1641035836423,11.030495,172.53,172.45,79.3931]
[1641035837127,11.530495,172.53,172.45,79.3931]
[1641035842953,11.030495,172.53,172.45,79.3931]
[1641035844254,11.030495,172.53,172.44,9.9703]
[1641035844455,11.030495,172.53,172.38,75.1271]
[1641035844654,1.3234,172.52,172.39,1.2477]
[1641035844855,8.7004,172.47,172.39,1.2477]
[1641035845154,28.11664124,172.46,172.39,1.2477]
[1641035845353,28.11664124,172.46,172.39,9.9476]
[1641035845755,28.11664124,172.46,172.39,10.4476]
[1641035846555,8.6997,172.48,172.39,10.7076]
[1641035847358,24.53002963,172.47,172.39,10.7076]
[1641035848159,26.86342463,172.47,172.39,10.7076]
[1641035848968,28.22062463,172.47,172.39,10.7076]
[1641035858476,25.88722963,172.47,172.39,10.7076]
[1641035859878,28.22062463,172.47,172.39,10.7076]
[1641035869686,36.92052463,172.47,172.39,10.7076]
[1641035870087,34.58712963,172.47,172.39,10.7076]
[1641035870588,34.58712963,172.47,172.39,8.9599]
[1641035870788,36.92052463,172.47,172.39,8.9599]
[1641035871387,28.22062463,172.47,172.39,10.7278]
[1641035874394,36.92062463,172.47,172.39,10.7278]
[1641035874592,36.92062463,172.47,172.39,10.2278]
[1641035875393,36.92062463,172.47,172.39,10.7278]
[1641035876522,36.92062463,172.47,172.39,10.2278]
[1641035876717,36.92062463,172.47,172.39,8.9599]
[1641035876919,37.42062463,172.47,172.39,8.9599]
[1641035877318,37.42062463,172.47,172.39,9.4599]
[1641035878619,36.92062463,172.47,172.39,8.9599]
[1641035878820,36.92062463,172.47,172.39,9.4599]
[1641035879019,28.22062463,172.47,172.39,9.4599]
[1641035879421,28.22062463,172.47,172.39,10.7627]
[1641035880321,36.92072463,172.47,172.39,10.7627]
[1641035880722,36.92072463,172.47,172.39,10.2627]
[1641035881024,34.58732963,172.47,172.39,10.2627]
[1641035881228,34.58732963,172.47,172.39,10.7627]
[1641035882432,25.88722963,172.47,172.39,10.7627]
[1641035882828,28.22062463,172.47,172.39,10.7627]
[1641035883828,36.92052463,172.47,172.39,10.7627]
[1641035884931,36.92052463,172.47,172.39,10.2627]
[1641035886034,12.390495,172.47,172.39,10.2627]
[1641035886232,12.390495,172.47,172.39,10.5027]
[1641035886834,3.690595,172.47,172.39,10.5027]
[1641035887533,3.690595,172.47,172.39,10.7627]
[1641035888434,12.390595,172.47,172.39,10.7627]
[1641035889836,12.390595,172.47,172.39,10.2627]
[1641035890037,12.390595,172.47,172.39,10.7627]
[1641035890238,12.390595,172.47,172.39,10.2627]
[1641035893441,12.390595,172.47,172.39,10.0027]
[1641035894343,12.390595,172.47,172.39,10.5027]
[1641035894744,12.390595,172.47,172.39,10.2627]
[1641035894943,3.690595,172.47,172.39,10.7627]
[1641035895845,3.690595,172.47,172.39,10.2627]
[1641035896647,12.390695,172.47,172.39,10.2627]
[1641035897648,12.390695,172.47,172.39,10.7627]
[1641035898348,12.390695,172.47,172.39,10.5027]
[1641035898949,12.390695,172.47,172.39,10.0027]
[1641035899148,12.390695,172.47,172.39,1.3028]
[1641035899348,12.890695,172.47,172.39,1.3028]
[1641035899753,12.890695,172.47,172.39,1.5628]
[1641035900149,12.390695,172.47,172.39,1.5628]
[1641035900355,12.390695,172.47,172.39,2.0628]
[1641035900550,12.390695,172.47,172.39,1.5628]
[1641035901352,3.690595,172.47,172.39,10.7631]
[1641035901553,2.333395,172.47,172.39,10.7631]
[1641035901751,2.333395,172.47,172.39,12.18979368]
[1641035903075,29.71343911,172.53,172.39,12.18979368]
[1641035903376,1.2555,172.52,172.39,12.18979368]
[1641035903976,1.2555,172.52,172.39,85.70749368]
[1641035904575,9.9531,172.52,172.39,85.70749368]
[1641035905775,12.286495,172.52,172.39,85.70749368]
[1641035906977,12.286495,172.52,172.39,84.2808]
[1641035907376,12.786495,172.52,172.39,84.2808]
[1641035907775,12.286495,172.52,172.39,84.2808]
[1641035907976,12.786495,172.52,172.39,84.2808]
[1641035908175,12.286495,172.52,172.39,84.2808]
[1641035909375,12.786495,172.52,172.39,84.2808]
[1641035910678,12.286495,172.52,172.39,84.2808]
[1641035910878,12.786495,172.52,172.39,84.2808]
[1641035911481,12.286495,172.52,172.39,84.2808]
[1641035911981,12.786495,172.52,172.39,84.2808]
[1641035912183,12.286495,172.52,172.4,1.42669368]
[1641035912383,3.588895,172.52,172.4,1.92669368]
[1641035912591,3.588895,172.52,172.46,8.697]
[1641035912987,3.588895,172.52,172.46,8.957]
[1641035914290,3.588895,172.52,172.46,9.457]
[1641035914487,3.588895,172.52,172.46,8.957]
[1641035916089,12.286395,172.52,172.46,9.457]
[1641035916288,12.286395,172.52,172.46,8.957]
[1641035916489,12.286395,172.52,172.46,0.26]
[1641035916888,12.286395,172.52,172.45,8.9577]
[1641035924194,12.286395,172.52,172.45,8.6977]
[1641035925497,12.286395,172.52,172.45,8.9577]
[1641035928299,8.786395,172.52,172.45,8.9577]
[1641035930605,8.786395,172.52,172.45,9.4577]
[1641035931204,8.786395,172.52,172.45,8.9577]
[1641035936010,8.786395,172.52,172.45,9.4577]
[1641035936410,8.786395,172.52,172.45,8.9577]
[1641035943141,0.088895,172.52,172.45,8.9577]
[1641035943343,0.088895,172.52,172.45,10.88439368]
[1641035945741,0.088895,172.52,172.45,12.22609368]
[1641035948144,0.088895,172.52,172.45,10.7994]
[1641035951651,0.088895,172.52,172.45,9.4577]
[1641035954457,0.088895,172.52,172.45,8.9577]
[1641035954857,0.088895,172.52,172.45,9.4577]
[1641035963893,0.088895,172.52,172.45,10.88439368]
[1641035964694,0.088895,172.52,172.45,12.14689368]
[1641035968199,0.088895,172.52,172.45,10.7202]
[1641035972804,0.088895,172.52,172.45,12.14689368]
[1641035973203,0.088895,172.52,172.45,10.7202]
[1641035985617,0.088895,172.52,172.45,10.4602]
[1641035986016,0.088895,172.52,172.45,9.1977]
[1641035986217,0.088895,172.52,172.45,8.6977]
[1641035986417,0.088895,172.52,172.45,9.1977]
[1641035986819,8.786495,172.52,172.45,8.6977]
[1641035987018,8.786495,172.52,172.45,8.9577]
[1641035987418,8.786495,172.52,172.45,0.26]
[1641035987817,8.786495,172.52,172.43,8.9583]
[1641035988020,9.286495,172.52,172.43,8.9583]
[1641035988223,10.536595,172.52,172.43,8.9583]
[1641035989050,10.036595,172.52,172.43,8.9583]
[1641035990655,0.088895,172.52,172.43,10.88499368]
[1641035991455,0.088895,172.52,172.44,1.2304]
[1641035991653,0.088895,172.52,172.48,8.6936]
[1641035991854,0.088895,172.52,172.48,16.0156]
[1641035992054,0.088895,172.52,172.48,16.2756]
[1641035994453,0.088895,172.52,172.48,9.4536]
[1641035995055,23.08934858,172.57,172.48,9.4536]
[1641035999962,23.08934858,172.57,172.48,10.7607]
[1641036001764,25.42274358,172.57,172.48,10.7607]
[1641036002263,25.42274358,172.57,172.48,11.92739368]
[1641036002465,25.42274358,172.57,172.48,9.1936]
[1641036003567,25.42274358,172.57,172.48,9.4536]
[1641036004868,25.42274358,172.57,172.48,10.8018]
[1641036009168,34.11774358,172.57,172.48,9.1936]
[1641036009369,34.61774358,172.57,172.48,8.6936]
[1641036009570,34.87774358,172.57,172.46,8.6975]
[1641036009770,34.87774358,172.57,172.39,80.3365]
[1641036009972,36.30443726,172.57,172.42,0.5]
[1641036010373,34.87774358,172.57,172.39,80.8365]
[1641036010573,1.3237,172.56,172.39,80.8365]
[1641036010774,8.6983,172.51,172.45,8.698]
[1641036010973,27.85478449,172.5,172.45,8.958]
[1641036011374,27.85478449,172.5,172.45,0.26]
[1641036011572,27.85478449,172.5,172.4,32.02209368]
[1641036011771,27.85478449,172.5,172.4,32.52209368]
[1641036012675,36.55318449,172.5,172.44,8.6984]
[1641036012872,38.88657949,172.5,172.44,8.6984]
[1641036013072,38.88657949,172.5,172.44,8.9584]
[1641036013576,30.18817949,172.5,172.44,8.9584]
[1641036014074,2.333395,172.5,172.44,9.4584]
[1641036014974,2.333395,172.5,172.44,8.9584]
[1641036017705,2.333395,172.5,172.44,9.4584]
[1641036017905,2.333395,172.5,172.44,8.9584]
[1641036019210,2.333395,172.5,172.44,9.4584]
[1641036023315,2.333395,172.5,172.44,0.5]
[1641036023712,2.333395,172.5,172.41,1.759]
[1641036024515,2.333395,172.5,172.41,2.019]
[1641036025613,11.031795,172.5,172.41,2.019]
[1641036028016,11.031795,172.5,172.41,1.759]
[1641036028416,11.531795,172.5,172.41,0.5]
[1641036028616,11.531795,172.5,172.35,1.42669368]
[1641036028817,11.531795,172.5,172.33,6.05420639]
[1641036029017,11.791795,172.5,172.31,8.6572]
[1641036029221,8.7016,172.44,172.34,10.12809368]
[1641036029417,26.57438594,172.43,172.34,1.92669368]
[1641036030418,26.57438594,172.43,172.35,1.42669368]
[1641036030818,26.57438594,172.43,172.35,10.12829368]
[1641036031019,26.57438594,172.43,172.35,10.62829368]
[1641036031421,26.57438594,172.43,172.35,10.88829368]
[1641036032518,26.57438594,172.43,172.35,0.26]
[1641036032918,26.57438594,172.43,172.34,8.9622]
[1641036033618,35.27658594,172.43,172.34,8.9622]